fUST/lending_fUST_20251225
["ID","MTS","AMOUNT","RATE_DAILY","PERIOD"]
[399747656,1766655039276,-309.15,9e-05,2]
[399747657,1766655039287,-252.46721458,9.056e-05,2]
[399747658,1766655039298,-195.52750725,9.056e-05,2]
[399747659,1766655039308,-500.0,9.056e-05,2]
[399747660,1766655039318,-478.75725327,9.056e-05,2]
[399747661,1766655039328,-506.36995505,9.056e-05,2]
[399747662,1766655039338,-252.03411113,9.056e-05,2]
[399747663,1766655039348,-254.64803819,9.056e-05,2]
[399747664,1766655039358,-151.0,9.056e-05,2]
[399747665,1766655039368,-156.587,9.056e-05,2]
[399747666,1766655039377,-151.66945865,9.056e-05,2]
[399747667,1766655039388,-151.10610815,9.056e-05,2]
[399747668,1766655039398,-255.07817171,9.056e-05,2]
[399747669,1766655039408,-151.11362743,9.056e-05,2]
[399747670,1766655039418,-309.15,9.1e-05,2]
[399747671,1766655039428,-183.41241655,9.162e-05,2]
[399747672,1766655039438,-707.64285405,9.185e-05,2]
[399747673,1766655039448,-309.15,9.2e-05,2]
[399747674,1766655039459,-309.15,9.3e-05,2]
[399747675,1766655039469,-301.74,9.344e-05,2]
[399747676,1766655039479,-309.15,9.4e-05,2]
[399747677,1766655039489,-2217.59943181,9.454e-05,2]
[399747678,1766655039499,-309.15,9.5e-05,2]
[399747679,1766655039510,-496.47127164,9.604e-05,2]
[399747680,1766655039521,-500.0,9.61e-05,2]
[399747681,1766655039531,-402.0589359,9.683e-05,2]
[399747682,1766655039540,-309.15,9.7e-05,2]
[399747683,1766655039551,-309.15,9.8e-05,2]
[399747684,1766655039560,-2217.59943182,9.84e-05,2]
[399747685,1766655039571,-600.0,9.858e-05,2]
[399747686,1766655039580,-151.0,9.858e-05,2]
[399747687,1766655039590,-309.15,9.9e-05,2]
[399747688,1766655039599,-2312.83697232,9.999e-05,5]
[399747689,1766655039609,-2398.4119403,9.999e-05,5]
[399747690,1766655039618,-2487.15318209,9.999e-05,5]
[399747691,1766655039627,-2579.17784983,9.999e-05,5]
[399747692,1766655039638,-2275.82070059,9.999e-05,5]
[399747693,1766655039648,-195.02,0.0001,2]
[399747694,1766655039658,-2112.55358387,0.0001,2]
[399747695,1766655039669,-8052.08243964,0.0001,2]
[399747696,1766655039679,-2915.46734787,0.0001,2]
[399747697,1766655039689,-151.0,0.0001,2]
[399747698,1766655039699,-4234.02252746,0.0001,2]
[399747699,1766655039710,-309.15,0.0001,2]
[399747700,1766655039725,-2390.41895128,0.00010126,2]
[399747701,1766655039735,-459.49592674,0.00010149,2]
[399747702,1766655039745,-514.84070869,0.00010152,2]
[399747703,1766655039755,-151.0,0.00010153,2]
[399747704,1766655039765,-160.1071518,0.00010153,2]
[399747705,1766655039774,-195.02,0.000102,2]
[399747706,1766655039785,-495.97144346,0.00010291,2]
[399747707,1766655039795,-705.68708791,0.00010322,14]
[399747708,1766655039806,-1363.0,0.00010449,2]
[399747709,1766655039816,-633.0,0.00010449,2]
[399747710,1766655039826,-416.0,0.00010449,2]
[399747711,1766655039836,-717.24442314,0.00010617,2]
[399747712,1766655039846,-329.81220743,0.00010625,2]
[399747713,1766655039856,-705.68708791,0.00010644,15]
[399747714,1766655039867,-533.88981491,0.000107,2]
[399747715,1766655039877,-720.0,0.00010844,2]
[399747716,1766655039887,-150.0,0.00010955,2]
[399747717,1766655039897,-297.439,0.00010955,2]
[399747718,1766655039907,-999.0,0.00010959,2]
[399747719,1766655039917,-500.0,0.00010959,2]
[399747720,1766655039927,-500.0,0.00010959,2]
[399747721,1766655039938,-500.0,0.00010959,2]
[399747722,1766655039948,-500.0,0.00010959,2]
[399747723,1766655039958,-370.39604315,0.00010959,2]
[399747724,1766655039968,-705.68708791,0.00010966,17]
[399747725,1766655039977,-151.0,0.00011,2]
[399747726,1766655039987,-4000.0,0.000112,2]
[399747727,1766655039997,-172.661553,0.000112,2]
[399747728,1766655040007,-700.92131436,0.00011248,2]
[399747729,1766655040017,-705.68708791,0.00011288,18]
[399747730,1766655040028,-5000.0,0.000114,2]
[399747731,1766655040038,-151.0,0.000116,2]
[399747732,1766655040048,-705.68708791,0.0001161,20]
[399747734,1766655040057,-160.0,0.00011908,3]
[399747735,1766655040067,-864.0,0.00011929,2]
[399747736,1766655040078,-705.68708791,0.00011932,21]
[399747737,1766655040088,-99191.90647698,0.00012,2]
[399747738,1766655040099,-151.0,0.000122,2]
[399747739,1766655040108,-705.68708791,0.00012254,22]
[399747740,1766655040118,-1041.66666667,0.00012272,2]
[399747741,1766655040128,-160.0,0.00012334,4]
[399747742,1766655040138,-705.68708791,0.00012576,24]
[399747743,1766655040147,-160.0,0.00012759,5]
[399747744,1766655040157,-151.0,0.000128,2]
[399747746,1766655040166,-705.68708791,0.00012898,25]
[399747748,1766655040176,-3723.52749562,0.000129,2]
[399747749,1766655040186,-3723.52749557,0.000129,2]
[399747751,1766655040195,-1000.0,0.00013121,2]
[399747752,1766655040205,-160.0,0.00013184,6]
[399747753,1766655040214,-5000.0,0.000132,2]
[399747754,1766655040223,-705.68708791,0.0001322,27]
[399747755,1766655040232,-500.0,0.00013273,2]
[399747756,1766655040242,-500.0,0.00013273,2]
[399747757,1766655040251,-500.0,0.00013273,2]
[399747758,1766655040261,-500.0,0.00013273,2]
[399747759,1766655040271,-500.0,0.00013273,2]
[399747760,1766655040281,-500.0,0.00013273,2]
[399747761,1766655040291,-500.0,0.00013273,2]
[399747762,1766655040300,-500.0,0.00013273,2]
[399747763,1766655040310,-500.0,0.00013273,2]
[399747764,1766655040320,-3723.52749557,0.00013301,2]
[399747765,1766655040329,-151.0,0.000134,2]
[399747767,1766655040339,-416.0,0.00013449,2]
[399747769,1766655040349,-250.0,0.000135,2]
[399747771,1766655040359,-10000.0,0.0001354,2]
[399747773,1766655040369,-705.68708791,0.00013542,28]
[399747775,1766655040379,-160.0,0.00013609,7]
[399747777,1766655040390,-163.55744937,0.00013609,5]
[399747779,1766655040400,-300.0,0.00013673,2]
[399747781,1766655040410,-3542.46,0.00013698,2]
[399747783,1766655040420,-3542.46,0.00013698,2]
[399747785,1766655040430,-3542.46,0.00013698,2]
[399747787,1766655040439,-3542.46,0.00013698,2]
[399747789,1766655040449,-3542.46,0.00013698,2]
[399747793,1766655040765,-3542.46,0.00013698,2]
[399747794,1766655040800,-3542.46,0.00013698,2]
[399747795,1766655040810,-3542.46,0.00013698,2]
[399747796,1766655040821,-3542.46,0.00013698,2]
[399747797,1766655040831,-3542.46,0.00013698,2]
[399747798,1766655040841,-3542.46,0.00013698,2]
[399747799,1766655040851,-3542.46,0.00013698,2]
[399747800,1766655040862,-3542.46,0.00013698,2]
[399747801,1766655040872,-3542.46,0.00013698,2]
[399747802,1766655040882,-3542.46,0.00013698,2]
[399747803,1766655040892,-3542.46,0.00013698,2]
[399747804,1766655040902,-3542.46,0.00013698,2]
[399747805,1766655040912,-3542.46,0.00013698,2]
[399747806,1766655040921,-3542.46,0.00013698,2]
[399747807,1766655040931,-2261.69094663,0.00013698,2]
[399747814,1766655044005,-1110.90484535,0.00013698,2]
[399747815,1766655044018,-169.86420802,0.00013698,2]
[399747816,1766655044028,-3542.46,0.00013698,2]
[399747817,1766655044038,-3542.46,0.00013698,2]
[399747818,1766655044047,-3542.46,0.00013698,2]
[399747819,1766655044057,-1326.60101635,0.00013698,2]
[399747820,1766655044069,-2215.91873761,0.00013698,2]
[399747821,1766655044078,-1219.9856728,0.00013699,2]
[399747824,1766655044439,-6770.58491379,0.00013699,2]
[399747831,1766655046244,-285.9405073,0.00013699,2]
[399747976,1766656238380,-207.23788017,5.264e-05,2]
[399747977,1766656238392,-150.0,5.279e-05,2]
[399747978,1766656238403,-150.0,5.325e-05,2]
[399747979,1766656238413,-150.0,5.851e-05,2]
[399747980,1766656238424,-150.0,6.339e-05,2]
[399747981,1766656238434,-150.0,6.826e-05,2]
[399747982,1766656238444,-180.26,7.261e-05,2]
[399747983,1766656238454,-177.0,7.279e-05,2]
[399747984,1766656238464,-216.31,7.745e-05,2]
[399747985,1766656238474,-4216.890071,7.932e-05,2]
[399747986,1766656238484,-300.0,8.225e-05,2]
[399747987,1766656238495,-20814.86401524,8.226e-05,2]
[399747988,1766656238505,-252.36,8.229e-05,2]
[399747989,1766656238515,-272.61794644,8.387e-05,2]
[399747990,1766656238526,-500.0,8.387e-05,2]
[399747991,1766656238535,-500.0,8.387e-05,2]
[399747992,1766656238546,-500.0,8.387e-05,2]
[399747993,1766656238556,-390.62176684,8.387e-05,2]
[399747994,1766656238566,-586.14507768,8.387e-05,2]
[399747995,1766656238576,-300.0,8.393e-05,2]
[399747996,1766656238586,-300.0,8.393e-05,2]
[399747997,1766656238596,-300.0,8.393e-05,2]
[399747998,1766656238606,-300.0,8.393e-05,2]
[399747999,1766656238616,-300.0,8.393e-05,2]
[399748000,1766656238628,-300.0,8.393e-05,2]
[399748001,1766656238649,-300.0,8.393e-05,2]
[399748002,1766656238660,-300.0,8.393e-05,2]
[399748003,1766656238670,-300.0,8.393e-05,2]
[399748004,1766656238680,-300.0,8.393e-05,2]
[399748005,1766656238690,-300.0,8.393e-05,2]
[399748006,1766656238700,-300.0,8.393e-05,2]
[399748007,1766656238711,-300.0,8.393e-05,2]
[399748008,1766656238721,-300.0,8.393e-05,2]
[399748009,1766656238731,-300.0,8.393e-05,2]
[399748010,1766656238742,-600.0,8.56e-05,2]
[399748011,1766656238752,-288.42,8.713e-05,2]
[399748012,1766656238762,-324.47,9.197e-05,2]
[399748013,1766656238772,-204.0,9.279e-05,2]
[399748014,1766656238784,-720.0,9.416e-05,2]
[399748015,1766656238794,-360.52,9.682e-05,2]
[399748016,1766656238804,-2312.83697232,9.843e-05,2]
[399748017,1766656238814,-864.0,0.00010357,2]
[399748018,1766656238823,-266.34087751,0.00010391,2]
[399748019,1766656238834,-416.0,0.0001066,2]
[399748020,1766656238844,-500.0,0.00011038,2]
[399748021,1766656238854,-231.0,0.00011279,2]
[399748022,1766656238864,-1000.0,0.00011393,2]
[399748023,1766656238875,-182.38023898,0.00011929,2]
[399748024,1766656238885,-1041.66666667,0.00012223,2]
[399748025,1766656238896,-1000.0,0.00012532,2]
[399748026,1766656238906,-244.0,0.00012532,2]
[399748027,1766656238916,-2327.20468474,0.000129,2]
[399748028,1766656238926,-2327.20468473,0.000129,2]
[399748029,1766656238936,-405.32820463,0.00013188,2]
[399748030,1766656238949,-346.9499921,0.00013188,2]
[399748031,1766656238961,-500.0,0.00013273,2]
[399748032,1766656238972,-500.0,0.00013273,2]
[399748033,1766656238983,-500.0,0.00013273,2]
[399748034,1766656238995,-500.0,0.00013273,2]
[399748035,1766656239006,-500.0,0.00013273,2]
[399748036,1766656239016,-500.0,0.00013273,2]
[399748037,1766656239027,-500.0,0.00013273,2]
[399748038,1766656239038,-500.0,0.00013273,2]
[399748039,1766656239049,-500.0,0.00013273,2]
[399748040,1766656239059,-80.75803186,0.00013279,2]
[399748065,1766656243679,-177.24196814,0.00013279,2]
[399748066,1766656243691,-622.75803186,0.00013425,2]
[399748067,1766656243761,-8.77003919,0.00013425,2]
[399748452,1766657438638,-150.0,5.404e-05,2]
[399748454,1766657438650,-196.24944787,5.435e-05,2]
[399748457,1766657438662,-130.07709249,5.895e-05,2]
[399751045,1766658511074,200.0,0.00014731,120]
[399751047,1766658561303,-150.0,5.345e-05,2]
[399751048,1766658561329,-150.0,5.405e-05,2]
[399751049,1766658561354,-150.0,5.83e-05,2]
[399751050,1766658561378,-150.0,6.316e-05,2]
[399751051,1766658561401,-150.0,6.802e-05,2]
[399751052,1766658561426,-150.0,7.205e-05,2]
[399751053,1766658561449,-150.0,7.759e-05,2]
[399751054,1766658561470,-150.0,8.259e-05,2]
[399751055,1766658561493,-150.58,8.746e-05,2]
[399751056,1766658561516,-169.4,9.231e-05,2]
[399751057,1766658561537,-887.0,9.632e-05,2]
[399751058,1766658561558,-154.51352965,9.633e-05,2]
[399751059,1766658561579,-300.0,9.633e-05,2]
[399751060,1766658561600,-172.0,9.633e-05,2]
[399751061,1766658561621,-300.0,9.633e-05,2]
[399751062,1766658561642,-5666.50647035,9.634e-05,2]
[399751092,1766658631536,-300.0,9.633e-05,2]
[399751093,1766658631547,-1200.0,9.633e-05,2]
[399751094,1766658631557,-8349.05094781,9.634e-05,2]
[399751095,1766658631568,-288.77742243,9.634e-05,2]
[399751113,1766658637690,-4240.27146611,9.634e-05,2]
[399751115,1766658637703,-2044.97081546,9.634e-05,2]
[399751290,1766658640050,-291.99692542,9.634e-05,2]
[399751293,1766658640062,-10277.91649242,9.634e-05,2]
[399751296,1766658640073,-555.0,9.634e-05,2]
[399751298,1766658640083,-302.5961425,0.00010959,2]
[399751301,1766658640094,-296.0569279,0.00011221,2]
[399751304,1766658640103,-453.56475035,0.00011376,2]
[399751307,1766658640113,-500.0,0.00011811,2]
[399751310,1766658640123,-324.76368268,0.00011811,2]
[399751312,1766658640133,-1041.66666667,0.00012217,2]
[399751314,1766658640142,-500.0,0.00012699,2]
[399751316,1766658640152,-534.71,0.00012699,2]
[399751318,1766658640162,-500.0,0.00013273,2]
[399751320,1766658640171,-500.0,0.00013273,2]
[399751322,1766658640180,-500.0,0.00013273,2]
[399751324,1766658640190,-500.0,0.00013273,2]
[399751326,1766658640199,-500.0,0.00013273,2]
[399751328,1766658640211,-500.0,0.00013273,2]
[399751330,1766658640222,-500.0,0.00013273,2]
[399751331,1766658640232,-500.0,0.00013273,2]
[399751333,1766658640242,-500.0,0.00013273,2]
[399751335,1766658640251,-500.0,0.00013273,2]
[399751337,1766658640261,-1456.02542169,0.00013425,2]
[399751339,1766658640271,-325.00814441,0.00013497,2]
[399751341,1766658640282,-500.0,0.00013497,2]
[399751343,1766658640291,-500.0,0.00013497,2]
[399751345,1766658640301,-159.27723021,0.00013497,2]
[399751347,1766658640312,-500.0,0.00013497,2]
[399751349,1766658640321,-536.11955725,0.00013497,2]
[399751350,1766658640331,-5214.94438641,0.00013498,2]
[399751574,1766658642816,-5164.41478538,0.00013498,2]
[399751576,1766658642828,-21072.3654202,0.00013498,2]
[399751578,1766658642839,-560.0,0.00013498,2]
[399751862,1766658645718,-4101.2795482,0.00013498,2]
[399752277,1766659151029,-200.0,0.00015975,120]
[399752278,1766659151083,-200.0,0.00015999,120]
[399752279,1766659151155,-200.0,0.0001707,120]
[399752280,1766659151211,-200.0,0.00017406,120]
[399752281,1766659151271,-200.0,0.00019515,120]
[399752282,1766659151329,-200.0,0.00020484,120]
[399752283,1766659151386,-173.42642098,0.00021682,120]
[399752284,1766659151441,-200.0,0.000245,120]
[399752285,1766659151508,-256.82675816,0.00025847,120]
[399752286,1766659151574,-391.15426,0.000293,120]
[399752287,1766659151627,-200.0,0.000293,120]
[399752288,1766659151677,-191.51275126,0.000295,120]
[399752289,1766659151729,-1168.38234106,0.0003,120]
[399752290,1766659151779,-209.90993686,0.0003,120]
[399752291,1766659151829,-385.36264158,0.0003,120]
[399752292,1766659151875,-345.46055574,0.0003,120]
[399752293,1766659151927,-970.900199,0.00030137,120]
[399752294,1766659151978,-200.0,0.00031,120]
[399752295,1766659152036,-1444.0,0.00031945,120]
[399752296,1766659152094,-277.80901,0.000327,120]
[399752297,1766659152150,-200.0,0.00032732,120]
[399752298,1766659152207,-500.0,0.00032876,120]
[399752299,1766659152264,-500.0,0.00032876,120]
[399752300,1766659152321,-500.0,0.00032876,120]
[399752301,1766659152387,-228.78765601,0.00032876,120]
[399752302,1766659152442,-500.0,0.00032876,120]
[399752303,1766659152498,-500.0,0.00032876,120]
[399752304,1766659152550,-500.0,0.00032876,120]
[399752305,1766659152599,-500.0,0.00032876,120]
[399752306,1766659152652,-500.0,0.00032876,120]
[399752307,1766659152701,-448.66085267,0.00032876,120]
[399752308,1766659152751,-500.0,0.00032876,120]
[399752309,1766659152799,-482.58896704,0.00032876,120]
[399752310,1766659152848,-500.0,0.00032876,120]
[399752311,1766659152894,-500.0,0.00032876,120]
[399752312,1766659152938,-202.43770049,0.00032876,120]
[399752313,1766659152980,-614.75,0.00032876,120]
[399752314,1766659153023,-614.75,0.00032876,120]
[399752315,1766659153068,-614.75,0.00032876,120]
[399752316,1766659153116,-614.75,0.00032876,120]
[399752317,1766659153163,-614.75,0.00032876,120]
[399752318,1766659153209,-614.75,0.00032876,120]
[399752319,1766659153254,-614.75,0.00032876,120]
[399752320,1766659153300,-536.16273147,0.00032876,120]
[399752321,1766659153345,-614.75,0.00032876,120]
[399752322,1766659153391,-614.75,0.00032876,120]
[399752323,1766659153440,-614.75,0.00032876,120]
[399752324,1766659153483,-500.0,0.00032876,120]
[399752325,1766659153529,-614.75,0.00032876,120]
[399752326,1766659153578,-614.75,0.00032876,120]
[399752327,1766659153627,-157.84232009,0.00032876,120]
[399752328,1766659153677,-614.75,0.00032876,120]
[399752329,1766659153725,-200.0,0.00032876,120]
[399752330,1766659153773,-614.75,0.00032876,120]
[399752331,1766659153823,-200.0,0.00032876,120]
[399752332,1766659153872,-614.75,0.00032876,120]
[399752333,1766659153922,-200.0,0.00032876,120]
[399752334,1766659153968,-614.75,0.00032876,120]
[399752335,1766659154014,-200.0,0.00032876,120]
[399752336,1766659154062,-614.75,0.00032876,120]
[399752337,1766659154104,-200.0,0.00032876,120]
[399752338,1766659154148,-614.75,0.00032876,120]
[399752339,1766659154192,-200.0,0.00032876,120]
[399752340,1766659154235,-614.75,0.00032876,120]
[399752341,1766659154277,-200.0,0.00032876,120]
[399752342,1766659154320,-614.75,0.00032876,120]
[399752343,1766659154364,-200.0,0.00032876,120]
[399752344,1766659154407,-614.75,0.00032876,120]
[399752345,1766659154453,-200.0,0.00032876,120]
[399752346,1766659154499,-614.75,0.00032876,120]
[399752347,1766659154542,-200.0,0.00032876,120]
[399752348,1766659154781,-614.75,0.00032876,120]
[399752349,1766659154834,-200.0,0.00032876,120]
[399752350,1766659154897,-614.83017801,0.00032876,120]
[399752351,1766659154956,-200.0,0.00032876,120]
[399752352,1766659155015,-200.0,0.00032876,120]
[399752353,1766659155073,-200.0,0.00032876,120]
[399752354,1766659155127,-200.0,0.00032876,120]
[399752355,1766659155180,-200.0,0.00032876,120]
[399752356,1766659155233,-200.0,0.00032876,120]
[399752357,1766659155290,-306.25067744,0.00032876,120]
[399752358,1766659155339,-500.0,0.00032876,120]
[399752359,1766659155386,-374.27607688,0.00032876,120]
[399752360,1766659155435,-1096.72,0.00032876,120]
[399752361,1766659155486,-1096.72,0.00032876,120]
[399752362,1766659155536,-1096.72,0.00032876,120]
[399752363,1766659155580,-1096.72,0.00032876,120]
[399752364,1766659155624,-1096.72,0.00032876,120]
[399752365,1766659155668,-1096.72,0.00032876,120]
[399752366,1766659155713,-762.5,0.00032876,120]
[399752367,1766659155756,-500.0,0.00032876,120]
[399752368,1766659155800,-762.5,0.00032876,120]
[399752369,1766659155844,-500.0,0.00032876,120]
[399752370,1766659155891,-762.5,0.00032876,120]
[399752371,1766659155933,-1096.72,0.00032876,120]
[399752372,1766659155976,-455.12140315,0.00032876,120]
[399752373,1766659156020,-762.5,0.00032876,120]
[399752374,1766659156065,-1096.72,0.00032876,120]
[399752375,1766659156110,-762.5,0.00032876,120]
[399752376,1766659156157,-1096.72,0.00032876,120]
[399752377,1766659156206,-762.5,0.00032876,120]
[399752378,1766659156255,-1096.72,0.00032876,120]
[399752379,1766659156301,-762.5,0.00032876,120]
[399752380,1766659156346,-1096.72,0.00032876,120]
[399752381,1766659156395,-762.5,0.00032876,120]
[399752382,1766659156440,-1096.72,0.00032876,120]
[399752383,1766659156485,-762.5,0.00032876,120]
[399752384,1766659156535,-1096.72,0.00032876,120]
[399752385,1766659156581,-762.5,0.00032876,120]
[399752386,1766659156630,-1096.72,0.00032876,120]
[399752387,1766659156676,-762.5,0.00032876,120]
[399752388,1766659156720,-1096.72,0.00032876,120]
[399752389,1766659156764,-762.5,0.00032876,120]
[399752390,1766659156806,-1096.72,0.00032876,120]
[399752391,1766659156848,-762.5,0.00032876,120]
[399752392,1766659156893,-1096.72,0.00032876,120]
[399752393,1766659156935,-762.5,0.00032876,120]
[399752394,1766659156979,-1096.72,0.00032876,120]
[399752395,1766659157023,-762.5,0.00032876,120]
[399752396,1766659157066,-1096.72,0.00032876,120]
[399752397,1766659157109,-762.5,0.00032876,120]
[399752398,1766659157165,-1096.72,0.00032876,120]
[399752399,1766659157220,-762.5,0.00032876,120]
[399752400,1766659157271,-1096.72,0.00032876,120]
[399752401,1766659157320,-762.5,0.00032876,120]
[399752402,1766659157369,-1096.72,0.00032876,120]
[399752403,1766659157416,-1096.72,0.00032876,120]
[399752404,1766659157464,-762.5,0.00032876,120]
[399752405,1766659157508,-1096.87986334,0.00032876,120]
[399752406,1766659157550,-762.5,0.00032876,120]
[399752407,1766659157594,-762.5,0.00032876,120]
[399752408,1766659157636,-762.5,0.00032876,120]
[399752409,1766659157679,-762.5,0.00032876,120]
[399752410,1766659157721,-762.50116011,0.00032876,120]
[399752411,1766659157764,-500.0,0.00032876,120]
[399752412,1766659157807,-500.0,0.00032876,120]
[399752413,1766659157854,-484.92913172,0.00032876,120]
[399752414,1766659157998,-500.0,0.00032876,120]
[399752415,1766659158054,-500.0,0.00032876,120]
[399752416,1766659158105,-500.0,0.00032876,120]
[399752417,1766659158154,-393.38251657,0.00032876,120]
[399752418,1766659158203,-504.01688613,0.00032876,120]
[399752419,1766659158255,-500.0,0.00032876,120]
[399752420,1766659158301,-401.99118623,0.00032876,120]
[399752421,1766659158345,-500.0,0.00032876,120]
[399752422,1766659158392,-500.0,0.00032876,120]
[399752423,1766659158439,-500.0,0.00032876,120]
[399752424,1766659158486,-500.0,0.00032876,120]
[399752425,1766659158530,-236.09520833,0.00032876,120]
[399752426,1766659158573,-381.96867562,0.00032876,120]
[399752427,1766659158614,-523.03349096,0.00032876,120]
[399752428,1766659158658,-500.0,0.00032876,120]
[399752429,1766659158700,-496.09984693,0.00032876,120]
[399752430,1766659158743,-500.0,0.00032876,120]
[399752431,1766659158785,-500.0,0.00032876,120]
[399752432,1766659158827,-500.0,0.00032876,120]
[399752433,1766659158872,-411.17342517,0.00032876,120]
[399752434,1766659158920,-500.0,0.00032876,120]
[399752435,1766659158967,-633.97442588,0.00032876,120]
[399752436,1766659159020,-500.0,0.00032876,120]
[399752437,1766659159072,-500.0,0.00032876,120]
[399752438,1766659159123,-500.0,0.00032876,120]
[399752439,1766659159173,-500.0,0.00032876,120]
[399752440,1766659159223,-500.0,0.00032876,120]
[399752441,1766659159272,-547.46703373,0.00032876,120]
[399752442,1766659159315,-500.0,0.00032876,120]
[399752443,1766659159358,-500.0,0.00032876,120]
[399752444,1766659159403,-500.0,0.00032876,120]
[399752445,1766659159443,-500.0,0.00032876,120]
[399752446,1766659159489,-500.0,0.00032876,120]
[399752447,1766659159532,-500.0,0.00032876,120]
[399752448,1766659159574,-500.0,0.00032876,120]
[399752449,1766659159616,-237.42067935,0.00032876,120]
[399752450,1766659159657,-166.89926934,0.00032876,120]
[399752451,1766659159698,-500.86213065,0.00032876,120]
[399752452,1766659159742,-500.77698107,0.00032876,120]
[399752453,1766659159782,-524.25896712,0.00032876,120]
[399752454,1766659159823,-500.0,0.00032876,120]
[399752455,1766659159868,-193.08737129,0.00032876,120]
[399752456,1766659159913,-500.0,0.00032876,120]
[399752457,1766659159955,-500.0,0.00032876,120]
[399752458,1766659159998,-500.0,0.00032876,120]
[399752459,1766659160042,-500.0,0.00032876,120]
[399752460,1766659160086,-500.0,0.00032876,120]
[399752461,1766659160131,-500.0,0.00032876,120]
[399752462,1766659160173,-500.0,0.00032876,120]
[399752463,1766659160216,-500.0,0.00032876,120]
[399752464,1766659160259,-500.0,0.00032876,120]
[399752465,1766659160302,-500.0,0.00032876,120]
[399752466,1766659160347,-500.0,0.00032876,120]
[399752467,1766659160392,-500.0,0.00032876,120]
[399752468,1766659160439,-478.43551873,0.00032876,120]
[399752469,1766659160483,-235.71176656,0.00032876,120]
[399752470,1766659160523,-500.0,0.00032876,120]
[399752471,1766659160563,-500.0,0.00032876,120]
[399752472,1766659160602,-500.0,0.00032876,120]
[399752473,1766659160642,-500.0,0.00032876,120]
[399752474,1766659160684,-500.0,0.00032876,120]
[399752475,1766659160727,-500.0,0.00032876,120]
[399752476,1766659160769,-500.0,0.00032876,120]
[399752477,1766659160816,-500.0,0.00032876,120]
[399752478,1766659160864,-184.15122077,0.00032876,120]
[399752479,1766659160912,-261.66819625,0.00032876,120]
[399752480,1766659160962,-500.0,0.00032876,120]
[399752481,1766659161016,-500.0,0.00032876,120]
[399752482,1766659161072,-500.0,0.00032876,120]
[399752483,1766659161127,-500.0,0.00032876,120]
[399752484,1766659161183,-500.0,0.00032876,120]
[399752485,1766659161238,-500.0,0.00032876,120]
[399752486,1766659161291,-500.0,0.00032876,120]
[399752487,1766659161341,-500.0,0.00032876,120]
[399752488,1766659161393,-500.0,0.00032876,120]
[399752489,1766659161445,-503.10843714,0.00032876,120]
[399752490,1766659161497,-500.0,0.00032876,120]
[399752491,1766659161545,-255.95365504,0.00032876,120]
[399752492,1766659161590,-500.0,0.00032876,120]
[399752493,1766659161635,-500.0,0.00032876,120]
[399752494,1766659161680,-500.0,0.00032876,120]
[399752495,1766659161726,-195.39905809,0.00032876,120]
[399752496,1766659161771,-500.0,0.00032876,120]
[399752497,1766659161815,-406.88952522,0.00032876,120]
[399752498,1766659161860,-164.48788145,0.00032876,120]
[399752499,1766659161904,-500.09293897,0.00032876,120]
[399752500,1766659161948,-500.0,0.00032876,120]
[399752501,1766659161992,-500.0,0.00032876,120]
[399752502,1766659162039,-500.0,0.00032876,120]
[399752503,1766659162086,-500.0,0.00032876,120]
[399752504,1766659162133,-500.0,0.00032876,120]
[399752505,1766659162180,-500.0,0.00032876,120]
[399752506,1766659162230,-500.0,0.00032876,120]